[Event "December 12 Late 2023"]
[Site "https://www.chess.com"]
[Date "2023.12.12"]
[Round "2"]
[White "Rees, Ioan"]
[Black "Munoz Sanchez, Miguel"]
[Result "0-1"]
[Board "107"]
[TimeControl "180+1"]
[WhiteFideId "1801236"]
[BlackFideId "3600734"]
[WhiteElo "2538"]
[BlackElo "2327"]
[WhiteTeam "WLS"]
[BlackTeam "ECU"]
[WhiteClock "0:01:01"]
[BlackClock "0:00:42"]

1. e4 {[%clk 0:03:00]}  e6 {[%clk 0:02:52]} 2. d4 {[%clk 0:03:00]}  d5 {[%clk 0:02:52]} 3. e5 {[%clk 0:03:00]}  c5 {[%clk 0:02:52]} 4. c3 {[%clk 0:03:01]}  Qb6 {[%clk 0:02:52]} 5. Nf3 {[%clk 0:03:01]}  Bd7 {[%clk 0:02:52]} 6. Be2 {[%clk 0:03:01]}  Bb5 {[%clk 0:02:52]} 7. O-O {[%clk 0:03:00]}  Bxe2 {[%clk 0:02:51]} 8. Qxe2 {[%clk 0:03:01]}  Nd7 {[%clk 0:02:49]} 9. a3 {[%clk 0:02:52]}  Ne7 {[%clk 0:02:47]} 10. Re1 {[%clk 0:02:41]}  Nc6 {[%clk 0:02:45]} 11. Be3 {[%clk 0:02:38]}  cxd4 {[%clk 0:02:42]} 12. Nxd4 {[%clk 0:02:32]}  Nxd4 {[%clk 0:02:42]} 13. Bxd4 {[%clk 0:02:31]}  Bc5 {[%clk 0:02:41]} 14. Qg4 {[%clk 0:02:15]}  O-O {[%clk 0:02:35]} 15. b4 {[%clk 0:02:12]}  Bxd4 {[%clk 0:02:32]} 16. cxd4 {[%clk 0:02:13]}  a5 {[%clk 0:02:28]} 17. bxa5 {[%clk 0:02:06]}  Rxa5 {[%clk 0:02:25]} 18. Nd2 {[%clk 0:02:01]}  Qb2 {[%clk 0:02:15]} 19. Nf3 {[%clk 0:01:55]}  Rxa3 {[%clk 0:02:12]} 20. Rxa3 {[%clk 0:01:56]}  Qxa3 {[%clk 0:02:12]} 21. h4 {[%clk 0:01:55]}  b5 {[%clk 0:02:08]} 22. Re3 {[%clk 0:01:54]}  Qc1+ {[%clk 0:02:06]} 23. Kh2 {[%clk 0:01:55]}  b4 {[%clk 0:02:05]} 24. Ng5 {[%clk 0:01:53]}  Qc2 {[%clk 0:01:34]} 25. Rg3 {[%clk 0:01:48]}  Qf5 {[%clk 0:01:26]} 26. Qxf5 {[%clk 0:01:24]}  exf5 {[%clk 0:01:23]} 27. e6 {[%clk 0:01:25]}  fxe6 {[%clk 0:01:19]} 28. Nxe6 {[%clk 0:01:26]}  Rf7 {[%clk 0:01:17]} 29. Rb3 {[%clk 0:01:26]}  Re7 {[%clk 0:01:13]} 30. Nf4 {[%clk 0:01:24]}  Re4 {[%clk 0:01:11]} 31. Nxd5 {[%clk 0:01:16]}  Rxh4+ {[%clk 0:01:11]} 32. Kg3 {[%clk 0:01:16]}  Rxd4 {[%clk 0:01:11]} 33. Ne7+ {[%clk 0:01:16]}  Kf7 {[%clk 0:01:10]} 34. Nxf5 {[%clk 0:01:17]}  Rd5 {[%clk 0:01:04]} 35. Kf4 {[%clk 0:01:11]}  Nc5 {[%clk 0:01:01]} 36. Ne3 {[%clk 0:01:04]}  Rd4+ {[%clk 0:00:42]} 37. Ke5 {[%clk 0:01:01]}  Nxb3 {[%clk 0:00:42]} 0-1

[Event "December 12 Late 2023"]
[Site "https://www.chess.com"]
[Date "2023.12.12"]
[Round "2"]
[White "Khokhlova, Daria"]
[Black "Bagrationi, Alexander"]
[Result "1-0"]
[Board "109"]
[TimeControl "180+1"]
[WhiteFideId "24182729"]
[BlackFideId "14104954"]
[WhiteElo "2322"]
[BlackElo "2523"]
[WhiteTeam "FID"]
[BlackTeam "ISR"]
[WhiteClock "0:00:05"]
[BlackClock "0:00:13"]

1. d4 {[%clk 0:03:00]}  c5 {[%clk 0:02:53]} 2. d5 {[%clk 0:03:00]}  Nf6 {[%clk 0:02:52]} 3. c4 {[%clk 0:02:59]}  b5 {[%clk 0:02:51]} 4. cxb5 {[%clk 0:02:58]}  a6 {[%clk 0:02:50]} 5. bxa6 {[%clk 0:02:58]}  Bxa6 {[%clk 0:02:45]} 6. Nc3 {[%clk 0:02:58]}  e6 {[%clk 0:02:42]} 7. Nf3 {[%clk 0:02:46]}  exd5 {[%clk 0:02:40]} 8. Nxd5 {[%clk 0:02:47]}  Nxd5 {[%clk 0:02:39]} 9. Qxd5 {[%clk 0:02:47]}  Nc6 {[%clk 0:02:40]} 10. e4 {[%clk 0:02:19]}  Nb4 {[%clk 0:02:26]} 11. Qb3 {[%clk 0:01:58]}  Bxf1 {[%clk 0:01:51]} 12. Kxf1 {[%clk 0:01:59]}  Be7 {[%clk 0:01:34]} 13. g3 {[%clk 0:01:55]}  O-O {[%clk 0:01:30]} 14. Kg2 {[%clk 0:01:54]}  d5 {[%clk 0:01:31]} 15. exd5 {[%clk 0:01:48]}  Qxd5 {[%clk 0:01:31]} 16. Qxd5 {[%clk 0:01:42]}  Nxd5 {[%clk 0:01:32]} 17. Ne5 {[%clk 0:01:25]}  Rfc8 {[%clk 0:01:15]} 18. Bd2 {[%clk 0:01:16]}  Bf6 {[%clk 0:01:13]} 19. Nc4 {[%clk 0:01:11]}  Ra4 {[%clk 0:01:10]} 20. Rhc1 {[%clk 0:01:11]}  Rca8 {[%clk 0:01:02]} 21. a3 {[%clk 0:01:08]}  Rb8 {[%clk 0:01:02]} 22. Rc2 {[%clk 0:01:05]}  Bd4 {[%clk 0:00:54]} 23. Re1 {[%clk 0:00:58]}  g6 {[%clk 0:00:45]} 24. Re2 {[%clk 0:00:42]}  Rb3 {[%clk 0:00:42]} 25. Be1 {[%clk 0:00:38]}  Kg7 {[%clk 0:00:34]} 26. Nd6 {[%clk 0:00:32]}  f5 {[%clk 0:00:31]} 27. h3 {[%clk 0:00:27]}  f4 {[%clk 0:00:30]} 28. Red2 {[%clk 0:00:18]}  f3+ {[%clk 0:00:28]} 29. Kf1 {[%clk 0:00:17]}  Nf6 {[%clk 0:00:25]} 30. h4 {[%clk 0:00:09]}  h5 {[%clk 0:00:23]} 31. Rd1 {[%clk 0:00:07]}  Ra6 {[%clk 0:00:22]} 32. Nc4 {[%clk 0:00:05]}  Ne4 {[%clk 0:00:21]} 33. Ne3 {[%clk 0:00:05]}  Bxe3 {[%clk 0:00:14]} 34. fxe3 {[%clk 0:00:06]}  Rxe3 {[%clk 0:00:15]} 35. Bf2 {[%clk 0:00:06]}  Rb3 {[%clk 0:00:14]} 36. Bxc5 {[%clk 0:00:05]}  Nxg3+ {[%clk 0:00:13]} 37. Kf2 {[%clk 0:00:06]}  Ne4+ {[%clk 0:00:13]} 38. Kf1 {[%clk 0:00:06]}  Rc6 {[%clk 0:00:14]} 39. Bd4+ {[%clk 0:00:06]}  Rf6 {[%clk 0:00:12]} 40. Bxf6+ {[%clk 0:00:05]}  Nxf6 {[%clk 0:00:13]} 41. Rd6 {[%clk 0:00:05]}  Ng4 {[%clk 0:00:13]} 42. Rc7+ {[%clk 0:00:05]}  Kf8 {[%clk 0:00:13]} 43. Rd8# {[%clk 0:00:05]} 1-0

[Event "December 12 Late 2023"]
[Site "https://www.chess.com"]
[Date "2023.12.12"]
[Round "2"]
[White "Rogov, Matfey"]
[Black "Silvestre, Christian"]
[Result "1-0"]
[Board "110"]
[TimeControl "180+1"]
[WhiteFideId "44191308"]
[BlackFideId "30956269"]
[WhiteElo "2521"]
[BlackElo "2322"]
[WhiteTeam "RUS"]
[BlackTeam "USA"]
[WhiteClock "0:01:52"]
[BlackClock "0:01:23"]

1. e4 {[%clk 0:03:00]}  c5 {[%clk 0:02:55]} 2. Nc3 {[%clk 0:03:00]}  g6 {[%clk 0:02:52]} 3. d4 {[%clk 0:02:55]}  cxd4 {[%clk 0:02:51]} 4. Qxd4 {[%clk 0:02:56]}  Nf6 {[%clk 0:02:47]} 5. Nf3 {[%clk 0:02:54]}  Nc6 {[%clk 0:02:47]} 6. Qa4 {[%clk 0:02:54]}  d6 {[%clk 0:02:43]} 7. Bg5 {[%clk 0:02:50]}  Bg7 {[%clk 0:02:41]} 8. O-O-O {[%clk 0:02:47]}  Qa5 {[%clk 0:02:27]} 9. Qxa5 {[%clk 0:02:41]}  Nxa5 {[%clk 0:02:28]} 10. Bb5+ {[%clk 0:02:42]}  Bd7 {[%clk 0:02:26]} 11. e5 {[%clk 0:02:38]}  Ng4 {[%clk 0:01:59]} 12. exd6 {[%clk 0:02:31]}  Nxf2 {[%clk 0:01:43]} 13. dxe7 {[%clk 0:01:54]}  Nxd1 {[%clk 0:01:40]} 14. Rxd1 {[%clk 0:01:52]}  Bc6 {[%clk 0:01:23]} 15. Rd8+ {[%clk 0:01:52]} 1-0

[Event "December 12 Late 2023"]
[Site "https://www.chess.com"]
[Date "2023.12.12"]
[Round "2"]
[White "Sherman, Raem"]
[Black "Bazzano, Sebastian"]
[Result "1-0"]
[Board "111"]
[TimeControl "180+1"]
[WhiteFideId "2822288"]
[BlackFideId "104566"]
[WhiteElo "2516"]
[BlackElo "2321"]
[WhiteTeam "ISR"]
[BlackTeam "ARG"]
[WhiteClock "0:01:46"]
[BlackClock "0:00:07"]

1. e4 {[%clk 0:03:00]}  e6 {[%clk 0:02:59]} 2. d4 {[%clk 0:03:00]}  d5 {[%clk 0:02:59]} 3. Nd2 {[%clk 0:03:01]}  dxe4 {[%clk 0:02:55]} 4. Nxe4 {[%clk 0:03:02]}  Bd7 {[%clk 0:02:55]} 5. Nf3 {[%clk 0:03:02]}  Bc6 {[%clk 0:02:55]} 6. Bd3 {[%clk 0:03:02]}  Bxe4 {[%clk 0:02:55]} 7. Bxe4 {[%clk 0:03:03]}  c6 {[%clk 0:02:55]} 8. c3 {[%clk 0:03:02]}  Nf6 {[%clk 0:02:55]} 9. Bc2 {[%clk 0:03:03]}  Bd6 {[%clk 0:02:54]} 10. O-O {[%clk 0:03:03]}  Nbd7 {[%clk 0:02:52]} 11. Bg5 {[%clk 0:03:01]}  O-O {[%clk 0:02:51]} 12. Re1 {[%clk 0:03:00]}  Qc7 {[%clk 0:02:50]} 13. Qe2 {[%clk 0:02:59]}  Bf4 {[%clk 0:02:49]} 14. Bxf4 {[%clk 0:02:56]}  Qxf4 {[%clk 0:02:49]} 15. Ne5 {[%clk 0:02:57]}  Rad8 {[%clk 0:02:41]} 16. g3 {[%clk 0:02:54]}  Qh6 {[%clk 0:02:30]} 17. Nc4 {[%clk 0:02:49]}  Nb6 {[%clk 0:02:23]} 18. Na5 {[%clk 0:02:43]}  Rd7 {[%clk 0:02:22]} 19. a4 {[%clk 0:02:41]}  Qh5 {[%clk 0:02:10]} 20. Qxh5 {[%clk 0:02:34]}  Nxh5 {[%clk 0:02:11]} 21. Nb3 {[%clk 0:02:33]}  Nc4 {[%clk 0:02:05]} 22. Rab1 {[%clk 0:02:30]}  b5 {[%clk 0:01:44]} 23. Bd3 {[%clk 0:02:28]}  Nd6 {[%clk 0:01:26]} 24. Nc5 {[%clk 0:02:21]}  Re7 {[%clk 0:01:25]} 25. Ra1 {[%clk 0:02:10]}  Nf6 {[%clk 0:01:18]} 26. axb5 {[%clk 0:02:09]}  cxb5 {[%clk 0:01:19]} 27. Ra6 {[%clk 0:02:08]}  Nc4 {[%clk 0:01:13]} 28. b3 {[%clk 0:02:01]}  Nd2 {[%clk 0:01:03]} 29. Kg2 {[%clk 0:02:00]}  Rc8 {[%clk 0:00:24]} 30. Rd1 {[%clk 0:01:59]}  Rxc5 {[%clk 0:00:24]} 31. dxc5 {[%clk 0:01:58]}  Nxb3 {[%clk 0:00:24]} 32. Bxb5 {[%clk 0:01:57]}  g6 {[%clk 0:00:22]} 33. c6 {[%clk 0:01:54]}  Nd5 {[%clk 0:00:17]} 34. c4 {[%clk 0:01:50]}  Nc3 {[%clk 0:00:13]} 35. Rd7 {[%clk 0:01:47]}  Re8 {[%clk 0:00:07]} 36. Raxa7 {[%clk 0:01:46]} 1-0

[Event "December 12 Late 2023"]
[Site "https://www.chess.com"]
[Date "2023.12.12"]
[Round "2"]
[White "Petukhov, Dmitry"]
[Black "Kappeler, Kaspar"]
[Result "1-0"]
[Board "114"]
[TimeControl "180+1"]
[WhiteFideId "4142748"]
[BlackFideId "1309072"]
[WhiteElo "2511"]
[BlackElo "2316"]
[WhiteTeam "RUS"]
[BlackTeam "SUI"]
[WhiteClock "0:00:08"]
[BlackClock "0:00:01"]

1. e4 {[%clk 0:03:00]}  c5 {[%clk 0:02:59]} 2. c3 {[%clk 0:02:59]}  d6 {[%clk 0:02:58]} 3. d4 {[%clk 0:02:59]}  Nf6 {[%clk 0:02:58]} 4. dxc5 {[%clk 0:02:58]}  Nc6 {[%clk 0:02:57]} 5. Bc4 {[%clk 0:02:58]}  Nxe4 {[%clk 0:02:52]} 6. Bxf7+ {[%clk 0:02:58]}  Kxf7 {[%clk 0:02:50]} 7. Qh5+ {[%clk 0:02:57]}  g6 {[%clk 0:02:49]} 8. Qd5+ {[%clk 0:02:58]}  e6 {[%clk 0:02:49]} 9. Qxe4 {[%clk 0:02:59]}  d5 {[%clk 0:02:49]} 10. Qe2 {[%clk 0:02:59]}  Bxc5 {[%clk 0:02:42]} 11. Nf3 {[%clk 0:02:59]}  e5 {[%clk 0:02:26]} 12. O-O {[%clk 0:02:53]}  Re8 {[%clk 0:02:18]} 13. b4 {[%clk 0:02:46]}  Bd6 {[%clk 0:02:14]} 14. b5 {[%clk 0:02:42]}  Na5 {[%clk 0:02:04]} 15. Qd2 {[%clk 0:02:27]}  e4 {[%clk 0:01:27]} 16. Qxd5+ {[%clk 0:01:50]}  Be6 {[%clk 0:01:27]} 17. Qxe4 {[%clk 0:01:38]}  Bc4 {[%clk 0:01:26]} 18. Ng5+ {[%clk 0:01:27]}  Qxg5 {[%clk 0:01:02]} 19. Qxc4+ {[%clk 0:01:25]}  Nxc4 {[%clk 0:00:51]} 20. Bxg5 {[%clk 0:01:25]}  Re5 {[%clk 0:00:48]} 21. Nd2 {[%clk 0:01:21]}  Nxd2 {[%clk 0:00:30]} 22. Bxd2 {[%clk 0:01:21]}  Rxb5 {[%clk 0:00:30]} 23. Rab1 {[%clk 0:01:20]}  Rxb1 {[%clk 0:00:30]} 24. Rxb1 {[%clk 0:01:21]}  b6 {[%clk 0:00:30]} 25. Be3 {[%clk 0:01:14]}  Rc8 {[%clk 0:00:29]} 26. Bd4 {[%clk 0:01:15]}  Bc5 {[%clk 0:00:28]} 27. Bxc5 {[%clk 0:00:56]}  Rxc5 {[%clk 0:00:28]} 28. Rb3 {[%clk 0:00:57]}  Ra5 {[%clk 0:00:25]} 29. a3 {[%clk 0:00:55]}  Ke6 {[%clk 0:00:25]} 30. c4 {[%clk 0:00:52]}  Ra4 {[%clk 0:00:25]} 31. Rc3 {[%clk 0:00:48]}  Ke5 {[%clk 0:00:24]} 32. Kf1 {[%clk 0:00:45]}  Kd4 {[%clk 0:00:24]} 33. Rh3 {[%clk 0:00:42]}  Kxc4 {[%clk 0:00:15]} 34. Ke2 {[%clk 0:00:38]}  b5 {[%clk 0:00:14]} 35. f4 {[%clk 0:00:34]}  a5 {[%clk 0:00:14]} 36. g4 {[%clk 0:00:32]}  Kc5 {[%clk 0:00:06]} 37. Rf3 {[%clk 0:00:30]}  b4 {[%clk 0:00:06]} 38. axb4+ {[%clk 0:00:31]}  axb4 {[%clk 0:00:06]} 39. f5 {[%clk 0:00:32]}  gxf5 {[%clk 0:00:05]} 40. gxf5 {[%clk 0:00:33]}  Ra3 {[%clk 0:00:04]} 41. Rf1 {[%clk 0:00:29]}  b3 {[%clk 0:00:04]} 42. f6 {[%clk 0:00:29]}  b2 {[%clk 0:00:04]} 43. f7 {[%clk 0:00:28]}  Ra8 {[%clk 0:00:02]} 44. Kd2 {[%clk 0:00:13]}  Kb4 {[%clk 0:00:03]} 45. Kc2 {[%clk 0:00:14]}  Ka3 {[%clk 0:00:03]} 46. f8=Q+ {[%clk 0:00:08]}  Rxf8 {[%clk 0:00:01]} 47. Rxf8 {[%clk 0:00:09]}  Ka2 {[%clk 0:00:01]} 48. Ra8# {[%clk 0:00:08]} 1-0

[Event "December 12 Late 2023"]
[Site "https://www.chess.com"]
[Date "2023.12.12"]
[Round "2"]
[White "Hernandez Jimenez, Alexander Andres"]
[Black "Krzywda, Andrzej"]
[Result "0-1"]
[Board "115"]
[TimeControl "180+1"]
[WhiteFideId "3900452"]
[BlackFideId "1114565"]
[WhiteElo "2299"]
[BlackElo "2510"]
[WhiteTeam "VEN"]
[BlackTeam "POL"]
[WhiteClock "0:00:06"]
[BlackClock "0:00:27"]

1. e4 {[%clk 0:01:18]}  e5 {[%clk 0:02:44]} 2. Nf3 {[%clk 0:01:17]}  Nf6 {[%clk 0:02:44]} 3. d4 {[%clk 0:01:16]}  Nxe4 {[%clk 0:02:44]} 4. Bd3 {[%clk 0:01:16]}  d5 {[%clk 0:02:44]} 5. Nxe5 {[%clk 0:01:16]}  Bd6 {[%clk 0:02:45]} 6. O-O {[%clk 0:01:14]}  O-O {[%clk 0:02:45]} 7. c4 {[%clk 0:01:13]}  c5 {[%clk 0:02:45]} 8. cxd5 {[%clk 0:01:10]}  Nf6 {[%clk 0:02:42]} 9. Re1 {[%clk 0:00:52]}  cxd4 {[%clk 0:02:37]} 10. Bg5 {[%clk 0:00:50]}  h6 {[%clk 0:02:35]} 11. Bh4 {[%clk 0:00:50]}  Re8 {[%clk 0:02:28]} 12. Nf3 {[%clk 0:00:44]}  Rxe1+ {[%clk 0:02:17]} 13. Qxe1 {[%clk 0:00:44]}  Be7 {[%clk 0:01:42]} 14. Nxd4 {[%clk 0:00:38]}  Nxd5 {[%clk 0:01:36]} 15. Bxe7 {[%clk 0:00:36]}  Qxe7 {[%clk 0:01:31]} 16. Nd2 {[%clk 0:00:32]}  Bd7 {[%clk 0:01:15]} 17. Qxe7 {[%clk 0:00:30]}  Nxe7 {[%clk 0:01:16]} 18. Re1 {[%clk 0:00:29]}  Nbc6 {[%clk 0:01:13]} 19. N2f3 {[%clk 0:00:27]}  Rd8 {[%clk 0:01:10]} 20. Nb5 {[%clk 0:00:26]}  Bg4 {[%clk 0:01:01]} 21. Bf1 {[%clk 0:00:22]}  Bxf3 {[%clk 0:01:00]} 22. gxf3 {[%clk 0:00:22]}  Rd2 {[%clk 0:01:00]} 23. Re2 {[%clk 0:00:22]}  Rd1 {[%clk 0:00:59]} 24. Kg2 {[%clk 0:00:22]}  Nf5 {[%clk 0:00:57]} 25. Nc3 {[%clk 0:00:17]}  Rc1 {[%clk 0:00:44]} 26. Rd2 {[%clk 0:00:13]}  Ne5 {[%clk 0:00:31]} 27. Rd8+ {[%clk 0:00:12]}  Kh7 {[%clk 0:00:31]} 28. Bd3 {[%clk 0:00:12]}  Nxd3 {[%clk 0:00:28]} 29. Rxd3 {[%clk 0:00:12]}  Rc2 {[%clk 0:00:27]} 30. Rd5 {[%clk 0:00:06]}  Ne3+ {[%clk 0:00:27]} 0-1

[Event "December 12 Late 2023"]
[Site "https://www.chess.com"]
[Date "2023.12.12"]
[Round "2"]
[White "Shapiro, Daniel"]
[Black "Grutter, Tim"]
[Result "0-1"]
[Board "121"]
[TimeControl "180+1"]
[WhiteFideId "2001780"]
[BlackFideId "1057472"]
[WhiteElo "2284"]
[BlackElo "2502"]
[WhiteTeam "USA"]
[BlackTeam "NED"]
[WhiteClock "0:00:00"]
[BlackClock "0:00:01"]

1. d4 {[%clk 0:03:00]}  d6 {[%clk 0:03:00]} 2. e4 {[%clk 0:03:00]}  Nf6 {[%clk 0:02:59]} 3. Nc3 {[%clk 0:03:00]}  e5 {[%clk 0:02:51]} 4. Nge2 {[%clk 0:02:57]}  g6 {[%clk 0:02:49]} 5. h3 {[%clk 0:02:55]}  Nc6 {[%clk 0:02:48]} 6. Be3 {[%clk 0:02:54]}  Bg7 {[%clk 0:02:48]} 7. g4 {[%clk 0:02:54]}  O-O {[%clk 0:02:42]} 8. Bg2 {[%clk 0:02:54]}  Re8 {[%clk 0:02:40]} 9. O-O {[%clk 0:02:51]}  a6 {[%clk 0:02:34]} 10. f4 {[%clk 0:02:49]}  b5 {[%clk 0:02:19]} 11. a3 {[%clk 0:02:27]}  exd4 {[%clk 0:02:11]} 12. Nxd4 {[%clk 0:02:25]}  Nxd4 {[%clk 0:01:47]} 13. Bxd4 {[%clk 0:02:24]}  Bb7 {[%clk 0:01:42]} 14. g5 {[%clk 0:01:52]}  Nh5 {[%clk 0:01:25]} 15. Bxg7 {[%clk 0:01:46]}  Nxg7 {[%clk 0:01:21]} 16. h4 {[%clk 0:01:36]}  Ne6 {[%clk 0:01:11]} 17. Nd5 {[%clk 0:01:24]}  Bxd5 {[%clk 0:01:09]} 18. Qxd5 {[%clk 0:01:21]}  Qe7 {[%clk 0:01:02]} 19. f5 {[%clk 0:01:07]}  Nc5 {[%clk 0:00:54]} 20. fxg6 {[%clk 0:01:03]}  hxg6 {[%clk 0:00:55]} 21. Rf6 {[%clk 0:00:51]}  Kg7 {[%clk 0:00:41]} 22. Raf1 {[%clk 0:00:49]}  Rf8 {[%clk 0:00:31]} 23. e5 {[%clk 0:00:29]}  Rad8 {[%clk 0:00:17]} 24. exd6 {[%clk 0:00:15]}  cxd6 {[%clk 0:00:17]} 25. Qd4 {[%clk 0:00:10]}  Qe5 {[%clk 0:00:09]} 26. Qxe5 {[%clk 0:00:07]}  dxe5 {[%clk 0:00:10]} 27. b4 {[%clk 0:00:06]}  Ne6 {[%clk 0:00:07]} 28. Re1 {[%clk 0:00:05]}  Rd2 {[%clk 0:00:06]} 29. Rxe5 {[%clk 0:00:05]}  Rxc2 {[%clk 0:00:05]} 30. Bd5 {[%clk 0:00:05]}  Nd4 {[%clk 0:00:04]} 31. Re7 {[%clk 0:00:03]}  Ne2+ {[%clk 0:00:03]} 32. Kf1 {[%clk 0:00:02]}  Ng3+ {[%clk 0:00:03]} 33. Ke1 {[%clk 0:00:02]}  Rc1+ {[%clk 0:00:01]} 34. Kd2 {[%clk 0:00:01]}  Ra1 {[%clk 0:00:01]} 35. Kc2 {[%clk 0:00:01]}  Rxa3 {[%clk 0:00:01]} 36. Bxf7 {[%clk 0:00:00]}  Kh8 {[%clk 0:00:01]} 0-1

[Event "December 12 Late 2023"]
[Site "https://www.chess.com"]
[Date "2023.12.12"]
[Round "2"]
[White "Shton, Roman"]
[Black "Lopez Del Alamo, Antonio"]
[Result "1-0"]
[Board "123"]
[TimeControl "180+1"]
[WhiteFideId "14137461"]
[BlackFideId "2227339"]
[WhiteElo "2499"]
[BlackElo "2273"]
[WhiteTeam "UKR"]
[BlackTeam "ESP"]
[WhiteClock "0:00:17"]
[BlackClock "0:00:05"]

1. d4 {[%clk 0:03:00]}  Nf6 {[%clk 0:02:58]} 2. Nf3 {[%clk 0:03:01]}  g6 {[%clk 0:02:58]} 3. c4 {[%clk 0:03:00]}  Bg7 {[%clk 0:02:58]} 4. Nc3 {[%clk 0:03:01]}  O-O {[%clk 0:02:58]} 5. Bg5 {[%clk 0:03:01]}  c5 {[%clk 0:02:58]} 6. d5 {[%clk 0:03:01]}  d6 {[%clk 0:02:55]} 7. e3 {[%clk 0:03:01]}  e6 {[%clk 0:02:54]} 8. Be2 {[%clk 0:03:01]}  exd5 {[%clk 0:02:54]} 9. cxd5 {[%clk 0:03:01]}  a6 {[%clk 0:02:53]} 10. a4 {[%clk 0:03:01]}  Nbd7 {[%clk 0:02:50]} 11. O-O {[%clk 0:03:01]}  Qa5 {[%clk 0:02:44]} 12. Nd2 {[%clk 0:02:58]}  Ne5 {[%clk 0:02:13]} 13. h3 {[%clk 0:02:47]}  Re8 {[%clk 0:02:08]} 14. f4 {[%clk 0:02:45]}  Ned7 {[%clk 0:02:07]} 15. Nc4 {[%clk 0:02:45]}  Qc7 {[%clk 0:02:06]} 16. e4 {[%clk 0:02:33]}  Nxe4 {[%clk 0:02:00]} 17. Nxe4 {[%clk 0:02:31]}  Rxe4 {[%clk 0:02:01]} 18. Qc2 {[%clk 0:02:19]}  f5 {[%clk 0:01:56]} 19. a5 {[%clk 0:02:15]}  b5 {[%clk 0:01:53]} 20. axb6 {[%clk 0:02:15]}  Nxb6 {[%clk 0:01:54]} 21. Na5 {[%clk 0:01:57]}  Bd7 {[%clk 0:01:47]} 22. Rfd1 {[%clk 0:01:55]}  h6 {[%clk 0:01:21]} 23. Bh4 {[%clk 0:01:52]}  Rxf4 {[%clk 0:01:20]} 24. Bg3 {[%clk 0:01:47]}  Rb4 {[%clk 0:01:19]} 25. Ra2 {[%clk 0:01:38]}  Na4 {[%clk 0:01:08]} 26. Nc6 {[%clk 0:01:34]}  Bxc6 {[%clk 0:01:02]} 27. dxc6 {[%clk 0:01:33]}  Qxc6 {[%clk 0:01:02]} 28. Rxd6 {[%clk 0:01:30]}  Qe8 {[%clk 0:00:47]} 29. Bxa6 {[%clk 0:00:49]}  Bd4+ {[%clk 0:00:41]} 30. Kh2 {[%clk 0:00:42]}  Rxa6 {[%clk 0:00:33]} 31. Rxa6 {[%clk 0:00:41]}  Qe3 {[%clk 0:00:33]} 32. Bf2 {[%clk 0:00:19]}  Qe5+ {[%clk 0:00:19]} 33. Bg3 {[%clk 0:00:18]}  Qe3 {[%clk 0:00:15]} 34. Bf2 {[%clk 0:00:18]}  Qe6 {[%clk 0:00:05]} 35. Rxe6 {[%clk 0:00:17]} 1-0

[Event "December 12 Late 2023"]
[Site "https://www.chess.com"]
[Date "2023.12.12"]
[Round "2"]
[White "Mejia, Cherry Ann"]
[Black "Garcia Almaguer, Juan Manuel"]
[Result "1-0"]
[Board "124"]
[TimeControl "180+1"]
[WhiteFideId "5206880"]
[BlackFideId "5110491"]
[WhiteElo "2265"]
[BlackElo "2499"]
[WhiteTeam "PHI"]
[BlackTeam "MEX"]
[WhiteClock "0:00:05"]
[BlackClock "0:00:03"]

1. e4 {[%clk 0:03:00]}  e5 {[%clk 0:02:59]} 2. Nf3 {[%clk 0:03:00]}  Nc6 {[%clk 0:02:54]} 3. Bb5 {[%clk 0:03:00]}  a6 {[%clk 0:02:54]} 4. Ba4 {[%clk 0:03:00]}  Nge7 {[%clk 0:02:51]} 5. c3 {[%clk 0:03:00]}  d5 {[%clk 0:02:50]} 6. Nxe5 {[%clk 0:02:21]}  dxe4 {[%clk 0:02:45]} 7. O-O {[%clk 0:02:02]}  Be6 {[%clk 0:02:41]} 8. Qe2 {[%clk 0:01:27]}  Qd5 {[%clk 0:02:20]} 9. Nxc6 {[%clk 0:01:10]}  Nxc6 {[%clk 0:02:17]} 10. Bb3 {[%clk 0:01:07]}  Qe5 {[%clk 0:02:13]} 11. Bxe6 {[%clk 0:01:06]}  Qxe6 {[%clk 0:02:14]} 12. Re1 {[%clk 0:01:06]}  f5 {[%clk 0:02:12]} 13. d3 {[%clk 0:01:04]}  O-O-O {[%clk 0:02:01]} 14. dxe4 {[%clk 0:01:03]}  fxe4 {[%clk 0:02:02]} 15. Nd2 {[%clk 0:00:59]}  Bd6 {[%clk 0:01:57]} 16. Qxe4 {[%clk 0:00:56]}  Qf7 {[%clk 0:01:51]} 17. Qg4+ {[%clk 0:00:54]}  Kb8 {[%clk 0:01:50]} 18. Nf3 {[%clk 0:00:54]}  h5 {[%clk 0:01:48]} 19. Qe6 {[%clk 0:00:47]}  Qf8 {[%clk 0:01:38]} 20. Bg5 {[%clk 0:00:45]}  Rc8 {[%clk 0:01:35]} 21. Rad1 {[%clk 0:00:44]}  Bf4 {[%clk 0:01:34]} 22. Bxf4 {[%clk 0:00:43]}  Qxf4 {[%clk 0:01:35]} 23. Nd4 {[%clk 0:00:40]}  Na7 {[%clk 0:01:30]} 24. Re4 {[%clk 0:00:27]}  Qg5 {[%clk 0:01:29]} 25. Nf3 {[%clk 0:00:27]}  Qb5 {[%clk 0:01:23]} 26. Rb4 {[%clk 0:00:27]}  Qa5 {[%clk 0:01:16]} 27. a3 {[%clk 0:00:16]}  Rce8 {[%clk 0:01:12]} 28. Qg6 {[%clk 0:00:14]}  Rd8 {[%clk 0:00:46]} 29. Re1 {[%clk 0:00:13]}  Nc6 {[%clk 0:00:45]} 30. Qxc6 {[%clk 0:00:12]}  Qxb4 {[%clk 0:00:45]} 31. Qxc7+ {[%clk 0:00:11]}  Kxc7 {[%clk 0:00:45]} 32. axb4 {[%clk 0:00:11]}  Rhe8 {[%clk 0:00:46]} 33. Kf1 {[%clk 0:00:08]}  Rxe1+ {[%clk 0:00:43]} 34. Kxe1 {[%clk 0:00:09]}  Kc6 {[%clk 0:00:44]} 35. Nd4+ {[%clk 0:00:07]}  Kd5 {[%clk 0:00:38]} 36. Kd2 {[%clk 0:00:07]}  Rf8 {[%clk 0:00:36]} 37. f3 {[%clk 0:00:06]}  g5 {[%clk 0:00:37]} 38. Ke3 {[%clk 0:00:04]}  g4 {[%clk 0:00:35]} 39. f4 {[%clk 0:00:04]}  Re8+ {[%clk 0:00:35]} 40. Kd2 {[%clk 0:00:05]}  Re4 {[%clk 0:00:33]} 41. g3 {[%clk 0:00:05]}  b5 {[%clk 0:00:22]} 42. b3 {[%clk 0:00:05]}  Re8 {[%clk 0:00:15]} 43. Kd3 {[%clk 0:00:03]}  Rd8 {[%clk 0:00:14]} 44. c4+ {[%clk 0:00:03]}  Kd6 {[%clk 0:00:14]} 45. Ke4 {[%clk 0:00:03]}  Re8+ {[%clk 0:00:14]} 46. Kd3 {[%clk 0:00:02]}  Re1 {[%clk 0:00:14]} 47. cxb5 {[%clk 0:00:02]}  axb5 {[%clk 0:00:14]} 48. Nxb5+ {[%clk 0:00:03]}  Kc6 {[%clk 0:00:15]} 49. Nd4+ {[%clk 0:00:03]}  Kb6 {[%clk 0:00:15]} 50. Nf5 {[%clk 0:00:03]}  Rh1 {[%clk 0:00:14]} 51. Ng7 {[%clk 0:00:03]}  Rxh2 {[%clk 0:00:15]} 52. Ke4 {[%clk 0:00:03]}  Kb5 {[%clk 0:00:13]} 53. f5 {[%clk 0:00:04]}  Kxb4 {[%clk 0:00:14]} 54. f6 {[%clk 0:00:04]}  h4 {[%clk 0:00:14]} 55. gxh4 {[%clk 0:00:04]}  g3 {[%clk 0:00:14]} 56. f7 {[%clk 0:00:04]}  Rf2 {[%clk 0:00:14]} 57. Nf5 {[%clk 0:00:05]}  g2 {[%clk 0:00:15]} 58. f8=Q+ {[%clk 0:00:05]}  Kxb3 {[%clk 0:00:15]} 59. Qg8+ {[%clk 0:00:05]}  Kc2 {[%clk 0:00:15]} 60. Qg3 {[%clk 0:00:05]}  Re2+ {[%clk 0:00:15]} 61. Ne3+ {[%clk 0:00:05]}  Kd2 {[%clk 0:00:15]} 62. Kf5 {[%clk 0:00:05]}  Kd3 {[%clk 0:00:04]} 63. Qf3 {[%clk 0:00:05]}  g1=Q {[%clk 0:00:03]} 64. Qd5+ {[%clk 0:00:04]}  Kc3 {[%clk 0:00:01]} 65. Qc5+ {[%clk 0:00:04]}  Kd2 {[%clk 0:00:02]} 66. Nc4+ {[%clk 0:00:04]}  Ke1 {[%clk 0:00:03]} 67. Qxg1# {[%clk 0:00:05]} 1-0